Workbook

Sheet Schnellrechner
B3: OLGAflex/Gruppe Schnellrechner | O3: Stand: 05.23
Q4: PTG Ri | R4: PTG AR
Q5: =IF($J$8>60,#REF!,R5) -> 0 | R5: 0
C6: Vorname und Nachname | G6: Max | J6: Muster | Q6: =IF($J$8>60,#REF!,R6) -> 5 | R6: 5
Q7: =IF($J$8>60,#REF!,R7) -> 10 | R7: 10
C8: Geburtsjahr | G8: 1980 | J8: =YEAR(G10)-G8 -> 43 | Q8: =IF($J$8>60,#REF!,R8) -> 15 | R8: 15
Q9: =IF($J$8>60,#REF!,R9) -> 20 | R9: 20
C10: Versicherungsbeginn | G10: 2023-05-01 | Q10: =IF($J$8>60,#REF!,R10) -> 25 | R10: 25
Q11: =IF($J$8>60,#REF!,R11) -> 30 | R11: 30
Q12: =IF($J$8>60,#REF!,R12) -> 35 | R12: 35
Q13: =IF($J$8>60,#REF!,R13) -> 45 | R13: 45
C14: Gewünschte Absicherung wählen: | Q14: =IF($J$8>60,#REF!,R14) -> 50 | R14: 50
Q15: =IF($J$8>60,#REF!,R15) -> 55 | R15: 55
C16: Tarif | F16: Pflegetagegeld | M16: Beitrag | Q16: =IF($J$8>60,#REF!,R16) -> 60 | R16: 60
Q17: =IF($J$8>60,#REF!,R17) -> 65 | R17: 65
C18: OLGAflex.AR | E18: i | H18: 50 | I18: ≙ | J18: =CONCATENATE("",H18*30," € pro Monat") -> 1500 € pro Monat | M18: =Beitrag!I6 -> 76 | Q18: =IF($J$8>60,#REF!,R18) -> 70 | R18: 70
Q19: =IF($J$8>60,#REF!,R19) -> 75 | R19: 75
C20: OLGAflex.Ri | E20: i | H20: 100 | I20: ≙ | J20: =CONCATENATE(H20*30," € pro Monat") -> 3000 € pro Monat | M20: =Beitrag!I7 -> 7 | Q20: =IF($J$8>60,#REF!,R20) -> 80 | R20: 80
C21: =IF(J8>60,"ab Alter 61 kann nur noch die Tarifstufe OLGAflex.AR abgeschlossen werden","") ->  | Q21: =IF($J$8>60,#REF!,R21) -> 85 | R21: 85
Q22: =IF($J$8>60,#REF!,R22) -> 90 | R22: 90
C23: Gesamt | G23: =IF(H18+H20>150,"Abbruch: ","") ->  | H23: =IF((H18+H20)>150,"Höchsttagegeld",H18+H20) -> 150 | I23: =IF((H18+H20)>150,"überschritten!",CONCATENATE("≙ ",(H18+H20)*30," € pro Monat")) -> ≙ 4500 € pro Monat | M23: =M18+M20 -> 83 | Q23: =IF($J$8>60,#REF!,R23) -> 95 | R23: 95
Q24: =IF($J$8>60,#REF!,R24) -> 100 | R24: 100
C27: Überblick der monatlichen Leistungen aus OLGAflex:
Q39: =IF($J$8>60,#REF!,R39) -> 105 | R39: 105
Q40: =IF($J$8>60,#REF!,R40) -> 110 | R40: 110
C41: Mit dieser Kombination entwickelt sich der OLGAflex-Beitrag folgendermaßen: | N41: i | Q41: =IF($J$8>60,#REF!,R41) -> 115 | R41: 115
Q42: =IF($J$8>60,#REF!,R42) -> 120 | R42: 120
Q43: =IF($J$8>60,#REF!,R43) -> 125 | R43: 125
Q44: =IF($J$8>60,#REF!,R44) -> 130 | R44: 130
Q45: =IF($J$8>60,#REF!,R45) -> 135 | R45: 135
Q46: =IF($J$8>60,#REF!,R46) -> 140 | R46: 140
Q47: =IF($J$8>60,#REF!,R47) -> 145 | R47: 145
Q48: =IF($J$8>60,#REF!,R48) -> 150 | R48: 150
C56: Beitragsänderungen aufgrund von Beitragsanpassungen oder Pflegegeld-Dynamisierungen sind nicht berücksichtigt.

Sheet Beitrag (hidden)
A1: Alter | B1: OLGAflex.AR | C1: OLGAflex.Ri | H1: variable Eingaben
G2: Alter | H2: =Schnellrechner!J8 -> 43 | I2: =YEAR(Schnellrechner!G10) -> 2023
A3: 0 | B3: =+'Beitrag PM2'!$B$7 -> 0.39 | C3: 0
A4: 1 | B4: =+'Beitrag PM2'!$B$7 -> 0.39 | C4: 0 | G4: Pflegetageld OLGAflex | H4: =H6+H7 -> 150
A5: 2 | B5: =+'Beitrag PM2'!$B$7 -> 0.39 | C5: 0
A6: 3 | B6: =+'Beitrag PM2'!$B$7 -> 0.39 | C6: 0 | G6: OLGAflex.AR | H6: =Schnellrechner!$H$18 -> 50 | I6: =IF(H6+H7>150,"",VLOOKUP(H2,A3:C93,2,FALSE)*H6) -> 76 | J6: =VLOOKUP(H2,A3:C93,2,FALSE)*H4 -> 228
A7: 4 | B7: =+'Beitrag PM2'!$B$7 -> 0.39 | C7: 0 | G7: OLGAflex.Ri | H7: =Schnellrechner!$H$20 -> 100 | I7: =IF(H6+H7>150,"",VLOOKUP(H2,A3:C93,3,FALSE)*H7) -> 7
A8: 5 | B8: =+'Beitrag PM2'!$B$7 -> 0.39 | C8: 0 | G8: Umstellungen | H8: =H7/10 -> 10
A9: 6 | B9: =+'Beitrag PM2'!$B$7 -> 0.39 | C9: 0 | G9: Alter | M9: Umstellung | N9: Mehrbeitrag | O9: Jahr | Q9: Gesamtbeitrag OLGAflex | T9: Vergleichs-beitrag ohne Föba
A10: 7 | B10: =+'Beitrag PM2'!$B$7 -> 0.39 | C10: 0 | G10: =H2 -> 43 | H10: 0 | I10: =H7 -> 100 | O10: =I2 -> 2023 | P10: ="ab "&O10 -> ab 2023 | Q10: =I6+I7 -> 83 | T10: =J6 -> 228
A11: 8 | B11: =+'Beitrag PM2'!$B$7 -> 0.39 | C11: 0 | G11: =IF((G10+5)<61,G10+5,61) -> 48 | H11: =IF(H$8>1,10,I10) -> 10 | I11: =I10-H11 -> 90 | J11: =IF(G11>60,I10,H11) -> 10 | K11: =IF((J10-J11)>9.9,0,1) -> 1 | L11: 1 | M11: =J11*K11*L11 -> 10 | N11: =N36-N35 -> 17.8 | O11: =O10+(G11-G10) -> 2028 | P11: ="ab "&O11 -> ab 2028 | Q11: =Q10+N11 -> 100.8 | T11: =T10 -> 228
A12: 9 | B12: =+'Beitrag PM2'!$B$7 -> 0.39 | C12: 0 | G12: =IF((G11+2)<61,G11+2,61) -> 50 | H12: =IF(H$8>2,10,I11) -> 10 | I12: =I11-H12 -> 80 | J12: =IF(G12>60,I11,H12) -> 10 | K12: 1 | L12: 1 | M12: =J12*K12*L12 -> 10 | N12: =N37-N36 -> 19.4 | O12: =IF((G12-G11)=1,O11+(G12-G11),O11+2) -> 2030 | P12: ab 2030 | Q12: 120.2 | T12: =T11 -> 228
A13: 10 | B13: =+'Beitrag PM2'!$B$7 -> 0.39 | C13: 0 | G13: =IF((G12+2)<61,G12+2,61) -> 52 | H13: =IF(H$8>3,10,I12) -> 10 | I13: 70 | J13: 10 | K13: 1 | L13: =IF((G13-G10)=0,0,1) -> 1 | M13: 10 | N13: 31 | O13: =IF((G13-G12)=1,O12+(G13-G12),O12+2) -> 2032 | P13: ab 2032 | Q13: 151.2 | T13: 228
A14: 11 | B14: =+'Beitrag PM2'!$B$7 -> 0.39 | C14: 0 | G14: 54 | H14: =IF(H$8>4,10,I13) -> 10 | I14: 60 | J14: =IF(G14>60,I13,H14) -> 10 | K14: 1 | L14: 1 | M14: 10 | N14: 21.8 | O14: 2034 | P14: ab 2034 | Q14: 173 | T14: 228
A15: 12 | B15: =+'Beitrag PM2'!$B$7 -> 0.39 | C15: 0 | G15: 56 | H15: =IF(H$8>5,10,I14) -> 10 | I15: 50 | J15: 10 | K15: 1 | L15: 1 | M15: 10 | N15: 24 | O15: 2036 | P15: ab 2036 | Q15: 197 | T15: 228
A16: 13 | B16: =+'Beitrag PM2'!$B$7 -> 0.39 | C16: 0 | G16: 58 | H16: =IF(H$8>6,10,I15) -> 10 | I16: 40 | J16: 10 | K16: 1 | L16: 1 | M16: 10 | N16: 26.4 | O16: 2038 | P16: ab 2038 | Q16: 223.4 | T16: 228
A17: 14 | B17: =+'Beitrag PM2'!$B$7 -> 0.39 | C17: 0 | G17: 60 | H17: =IF(H$8>7,10,I16) -> 10 | I17: 30 | J17: 10 | K17: 1 | L17: 1 | M17: 10 | N17: 29.3 | O17: 2040 | P17: ab 2040 | Q17: 252.7 | T17: 228
A18: 15 | B18: =+'Beitrag PM2'!$B$7 -> 0.39 | C18: 0 | G18: 61 | H18: =IF(H$8>8,10,I17) -> 10 | I18: 20 | J18: 30 | K18: =IF((J17-J18)>9.9,0,1) -> 1 | L18: 1 | M18: 30 | O18: 2041 | P18: ab 2041 | T18: 228
A19: 16 | B19: =+'Beitrag PM2'!$B$7 -> 0.39 | C19: 0 | G19: 61 | H19: =IF(H$8>9,10,I18) -> 10 | I19: 10 | J19: 20 | K19: 0 | L19: 1 | M19: 0 | O19: 2043 | P19: ab 2043 | T19: 228
A20: 17 | B20: =+'Beitrag PM2'!$B$8 -> 0.23 | C20: 0 | G20: 61 | H20: =IF(H$8>10,10,I19) -> 10 | I20: 0 | J20: 10 | K20: 0 | L20: =IF((G20-G17)=0,0,1) -> 1 | M20: 0 | O20: 2045 | P20: ab 2045 | T20: 228
A21: 18 | B21: =+'Beitrag PM2'!$B$8 -> 0.23 | C21: 0 | G21: 61 | H21: =IF(H$8>11,10,I20) -> 0 | I21: 0 | J21: 0 | K21: 0 | L21: =IF((G21-G18)=0,0,1) -> 0 | M21: 0 | O21: 2047 | P21: ab 2047 | T21: 228
A22: 19 | B22: =+'Beitrag PM2'!$B$8 -> 0.23 | C22: 0 | G22: 61 | H22: =IF(H$8>12,10,I21) -> 0 | I22: 0 | J22: 0 | K22: 1 | L22: 0 | M22: 0 | O22: 2049 | P22: ab 2049 | T22: 228
A23: 20 | B23: =+'Beitrag PM2'!$B$8 -> 0.23 | C23: 0 | G23: 61 | H23: =IF(H$8>13,10,I22) -> 0 | I23: 0 | J23: 0 | K23: 1 | L23: 0 | M23: 0 | O23: 2051 | P23: ab 2051 | T23: 228
A24: 21 | B24: =+'Beitrag PM2'!B9 -> 0.66 | C24: =+'Beitrag PM2'!C9 -> 0.07 | G24: 61 | H24: =IF(H$8>14,10,I23) -> 0 | I24: 0 | J24: 0 | K24: 1 | L24: 0 | M24: 0 | O24: 2053 | P24: ab 2053 | T24: 228
A25: 22 | B25: =+'Beitrag PM2'!B10 -> 0.68 | C25: =+'Beitrag PM2'!C10 -> 0.07 | G25: 61 | H25: =IF(H$8>15,10,I24) -> 0 | I25: 0 | J25: 0 | K25: 1 | L25: 0 | M25: 0 | O25: 2055 | P25: ab 2055 | T25: 228
A26: 23 | B26: =+'Beitrag PM2'!B11 -> 0.71 | C26: =+'Beitrag PM2'!C11 -> 0.07 | G26: 61 | H26: =IF(H$8>16,10,I25) -> 0 | I26: 0 | J26: 0 | K26: 1 | L26: 0 | M26: 0 | O26: 2057 | P26: ab 2057 | T26: 228
A27: 24 | B27: =+'Beitrag PM2'!B12 -> 0.73 | C27: =+'Beitrag PM2'!C12 -> 0.07 | G27: 61 | H27: =IF(H$8>17,10,I26) -> 0 | I27: 0 | J27: 0 | K27: 1 | L27: 0 | M27: 0 | O27: 2059 | P27: ab 2059 | T27: 228
A28: 25 | B28: =+'Beitrag PM2'!B13 -> 0.76 | C28: =+'Beitrag PM2'!C13 -> 0.07 | G28: 61 | H28: =IF(H$8>18,10,I27) -> 0 | I28: 0 | J28: 0 | K28: 1 | L28: 0 | M28: 0 | O28: 2061 | P28: ab 2061 | T28: 228
A29: 26 | B29: =+'Beitrag PM2'!B14 -> 0.79 | C29: =+'Beitrag PM2'!C14 -> 0.07 | G29: 61 | H29: =IF(H$8>19,10,I28) -> 0 | I29: 0 | J29: 0 | K29: 1 | L29: 0 | M29: 0 | O29: 2063 | P29: ab 2063 | T29: 228
A30: 27 | B30: =+'Beitrag PM2'!B15 -> 0.82 | C30: =+'Beitrag PM2'!C15 -> 0.07
A31: 28 | B31: =+'Beitrag PM2'!B16 -> 0.85 | C31: =+'Beitrag PM2'!C16 -> 0.07
A32: 29 | B32: =+'Beitrag PM2'!B17 -> 0.88 | C32: =+'Beitrag PM2'!C17 -> 0.07
A33: 30 | B33: =+'Beitrag PM2'!B18 -> 0.92 | C33: =+'Beitrag PM2'!C18 -> 0.07
A34: 31 | B34: =+'Beitrag PM2'!B19 -> 0.95 | C34: =+'Beitrag PM2'!C19 -> 0.07 | G34: Alter | H34: TG AR | I34: Beitrag AR | J34: TG Ri | K34: Beitrag Ri | L34: Umstellung | M34: Mehrbeitrag in AR | N34: Summe Beitrag AR plus Ri | Q34: ab Jahr | R34: OLGAflex | S34: Vergleichsbeitrag (ab Beginn 100 % OLGAflex.AR) | U34: Alter
A35: 32 | B35: =+'Beitrag PM2'!B20 -> 0.99 | C35: =+'Beitrag PM2'!C20 -> 0.07 | G35: =H2 -> 43 | H35: =H6 -> 50 | I35: =I6 -> 76 | J35: =H7 -> 100 | K35: =I7 -> 7 | N35: =I35+K35 -> 83 | Q35: =IF(R35=" "," ",O10) -> 2023 | R35: =Q10 -> 83 | S35: =T10 -> 228 | U35: =H2 -> 43 | W35: Ri | X35: AR
A36: 33 | B36: =+'Beitrag PM2'!B21 -> 1.03 | C36: =+'Beitrag PM2'!C21 -> 0.07 | G36: =IF((G35+5)<61,G35+5,61) -> 48 | H36: =H35+L36 -> 60 | I36: =I35+M36 -> 94.5 | J36: =J35-L36 -> 90 | K36: =VLOOKUP(G36,A$3:D$64,3,FALSE)*J36 -> 6.3 | L36: =M11 -> 10 | M36: =VLOOKUP(G36,A$3:D$64,2,FALSE)*L36 -> 18.5 | N36: =I36+K36 -> 100.8 | Q36: =IF(R36=" "," ",O10+1) -> 2024 | R36: =IF(U36=51,V36,R35) -> 83 | S36: =S35 -> 228 | U36: =U35+1 -> 44 | V36: =W36+X36 -> 83 | W36: =VLOOKUP(U36,A3:C93,3,FALSE)*H7 -> 7 | X36: =VLOOKUP(H2,A3:C93,2,FALSE)*H6 -> 76
A37: 34 | B37: =+'Beitrag PM2'!B22 -> 1.07 | C37: =+'Beitrag PM2'!C22 -> 0.07 | G37: =IF((G36+2)<61,G36+2,61) -> 50 | H37: =H36+L37 -> 70 | I37: =I36+M37 -> 114.6 | J37: =J36-L37 -> 80 | K37: =VLOOKUP(G37,A$3:D$64,3,FALSE)*J37 -> 5.6 | L37: =M12 -> 10 | M37: =VLOOKUP(G37,A$3:D$64,2,FALSE)*L37 -> 20.1 | N37: =I37+K37 -> 120.2 | Q37: =IF(R37=" "," ",O10+2) -> 2025 | R37: =IF(U37=51,V37,R36) -> 83 | S37: =S36 -> 228 | U37: =U36+1 -> 45 | V37: =W37+X37 -> 83 | W37: =VLOOKUP(U37,A3:C93,3,FALSE)*H7 -> 7 | X37: =X36 -> 76
A38: 35 | B38: =+'Beitrag PM2'!B23 -> 1.11 | C38: =+'Beitrag PM2'!C23 -> 0.07 | G38: =IF((G37+2)<61,G37+2,61) -> 52 | H38: =H37+L38 -> 80 | I38: 136.5 | J38: =J37-L38 -> 70 | K38: =VLOOKUP(G38,A$3:D$64,3,FALSE)*J38 -> 14.7 | L38: =M13 -> 10 | M38: =VLOOKUP(G38,A$3:D$64,2,FALSE)*L38 -> 21.9 | N38: =I38+K38 -> 151.2 | Q38: =IF(R38=" "," ",O10+3) -> 2026 | R38: 83 | S38: 228 | U38: 46 | V38: 83 | W38: =VLOOKUP(U38,A3:C93,3,FALSE)*H7 -> 7 | X38: =X37 -> 76
A39: 36 | B39: =+'Beitrag PM2'!B24 -> 1.16 | C39: =+'Beitrag PM2'!C24 -> 0.07 | G39: 54 | H39: 90 | I39: 160.4 | J39: 60 | K39: 12.6 | L39: 10 | M39: 23.9 | N39: 173 | Q39: =IF(R39=" "," ",O10+4) -> 2027 | R39: 83 | S39: 228 | U39: 47 | V39: 83 | W39: =VLOOKUP(U39,A3:C93,3,FALSE)*H7 -> 7 | X39: =X38 -> 76
A40: 37 | B40: =+'Beitrag PM2'!B25 -> 1.2 | C40: =+'Beitrag PM2'!C25 -> 0.07 | G40: 56 | H40: 100 | I40: 186.5 | J40: 50 | K40: 10.5 | L40: 10 | M40: 26.1 | N40: 197 | Q40: =IF(R40="-","-",P11) -> ab 2028 | R40: =IF(Q11=R35,"-",IF(R35="-","-",Q11)) -> 100.8 | S40: =IF(R40="-","-",S35) -> 228
A41: 38 | B41: =+'Beitrag PM2'!B26 -> 1.25 | C41: =+'Beitrag PM2'!C26 -> 0.07 | G41: 58 | H41: 110 | I41: 215 | J41: 40 | K41: 8.4 | L41: 10 | M41: 28.5 | N41: 223.4 | Q41: =IF(R41="-","-",P12) -> ab 2030 | R41: =IF(Q12=R40,"-",IF(R40="-","-",Q12)) -> 120.2 | S41: =IF(R41="-","-",S40) -> 228
A42: 39 | B42: =+'Beitrag PM2'!B27 -> 1.3 | C42: =+'Beitrag PM2'!C27 -> 0.07 | G42: 60 | H42: 120 | I42: 246.4 | J42: 30 | K42: 6.3 | L42: 10 | M42: 31.4 | N42: 252.7 | Q42: =IF(R42="-","-",P13) -> ab 2032 | R42: =IF(Q13=R41,"-",IF(R41="-","-",Q13)) -> 151.2 | S42: =IF(R42="-","-",S41) -> 228
A43: 40 | B43: =+'Beitrag PM2'!B28 -> 1.35 | C43: =+'Beitrag PM2'!C28 -> 0.07 | G43: 61 | H43: 150 | I43: 345.1 | J43: 0 | L43: 30 | M43: 98.7 | Q43: =IF(R43="-","-",P14) -> ab 2034 | R43: =IF(Q14=R42,"-",IF(R42="-","-",Q14)) -> 173 | S43: =IF(R43="-","-",S42) -> 228
A44: 41 | B44: =+'Beitrag PM2'!B29 -> 1.4 | C44: =+'Beitrag PM2'!C29 -> 0.07 | G44: 61 | H44: 150 | I44: 345.1 | J44: 0 | L44: 0 | M44: 0 | Q44: =IF(R44="-","-",P15) -> ab 2036 | R44: =IF(Q15=R43,"-",IF(R43="-","-",Q15)) -> 197 | S44: =IF(R44="-","-",S43) -> 228
A45: 42 | B45: =+'Beitrag PM2'!B30 -> 1.46 | C45: =+'Beitrag PM2'!C30 -> 0.07 | G45: 61 | H45: 150 | I45: 345.1 | J45: 0 | L45: 0 | M45: 0 | Q45: ab 2038 | R45: 223.4 | S45: 228
A46: 43 | B46: =+'Beitrag PM2'!B31 -> 1.52 | C46: =+'Beitrag PM2'!C31 -> 0.07 | G46: 61 | H46: 150 | I46: 345.1 | J46: 0 | L46: 0 | M46: 0 | Q46: ab 2040 | R46: 252.7 | S46: 228
A47: 44 | B47: =+'Beitrag PM2'!B32 -> 1.58 | C47: =+'Beitrag PM2'!C32 -> 0.07 | G47: 61 | H47: 150 | I47: 345.1 | J47: 0 | L47: 0 | M47: 0
A48: 45 | B48: =+'Beitrag PM2'!B33 -> 1.64 | C48: =+'Beitrag PM2'!C33 -> 0.07 | G48: 61 | H48: 150 | I48: 345.1 | J48: 0 | L48: 0 | M48: 0
A49: 46 | B49: =+'Beitrag PM2'!B34 -> 1.71 | C49: =+'Beitrag PM2'!C34 -> 0.07 | G49: 61 | H49: 150 | I49: 345.1 | J49: 0 | L49: 0 | M49: 0
A50: 47 | B50: =+'Beitrag PM2'!B35 -> 1.78 | C50: =+'Beitrag PM2'!C35 -> 0.07 | G50: 61 | H50: 150 | I50: 345.1 | J50: 0 | L50: 0 | M50: 0
A51: 48 | B51: =+'Beitrag PM2'!B36 -> 1.85 | C51: =+'Beitrag PM2'!C36 -> 0.07 | G51: 61 | H51: 150 | I51: 345.1 | J51: 0 | L51: 0 | M51: 0
A52: 49 | B52: =+'Beitrag PM2'!B37 -> 1.93 | C52: =+'Beitrag PM2'!C37 -> 0.07 | G52: 61 | H52: 150 | I52: 345.1 | J52: 0 | L52: 0 | M52: 0
A53: 50 | B53: =+'Beitrag PM2'!B38 -> 2.01 | C53: =+'Beitrag PM2'!C38 -> 0.07 | G53: 61 | H53: 150 | I53: 345.1 | J53: 0 | L53: 0 | M53: 0
A54: 51 | B54: =+'Beitrag PM2'!B39 -> 2.1 | C54: =+'Beitrag PM2'!C39 -> 0.21 | G54: 61 | H54: =H53+L54 -> 150 | I54: 345.1 | J54: 0 | L54: 0 | M54: 0
A55: 52 | B55: =+'Beitrag PM2'!B40 -> 2.19 | C55: =+'Beitrag PM2'!C40 -> 0.21
A56: 53 | B56: =+'Beitrag PM2'!B41 -> 2.28 | C56: =+'Beitrag PM2'!C41 -> 0.21
A57: 54 | B57: =+'Beitrag PM2'!B42 -> 2.39 | C57: =+'Beitrag PM2'!C42 -> 0.21
A58: 55 | B58: =+'Beitrag PM2'!B43 -> 2.49 | C58: =+'Beitrag PM2'!C43 -> 0.21
A59: 56 | B59: =+'Beitrag PM2'!B44 -> 2.61 | C59: =+'Beitrag PM2'!C44 -> 0.21
A60: 57 | B60: =+'Beitrag PM2'!B45 -> 2.73 | C60: =+'Beitrag PM2'!C45 -> 0.21
A61: 58 | B61: =+'Beitrag PM2'!B46 -> 2.85 | C61: =+'Beitrag PM2'!C46 -> 0.21
A62: 59 | B62: =+'Beitrag PM2'!B47 -> 2.99 | C62: =+'Beitrag PM2'!C47 -> 0.21
A63: 60 | B63: =+'Beitrag PM2'!B48 -> 3.14 | C63: =+'Beitrag PM2'!C48 -> 0.21
A64: 61 | B64: =+'Beitrag PM2'!B49 -> 3.29 | C64: =+'Beitrag PM2'!C49 -> -
A65: 62 | B65: =+'Beitrag PM2'!B50 -> 3.46 | C65: =+'Beitrag PM2'!C50 -> -
A66: 63 | B66: =+'Beitrag PM2'!B51 -> 3.64 | C66: =+'Beitrag PM2'!C51 -> -
A67: 64 | B67: =+'Beitrag PM2'!B52 -> 3.83 | C67: =+'Beitrag PM2'!C52 -> -
A68: 65 | B68: =+'Beitrag PM2'!B53 -> 4.04 | C68: =+'Beitrag PM2'!C53 -> -
A69: 66 | B69: =+'Beitrag PM2'!B54 -> 4.26 | C69: =+'Beitrag PM2'!C54 -> -
A70: 67 | B70: =+'Beitrag PM2'!B55 -> 4.49 | C70: =+'Beitrag PM2'!C55 -> -
A71: 68 | B71: =+'Beitrag PM2'!B56 -> 4.74 | C71: =+'Beitrag PM2'!C56 -> -
A72: 69 | B72: =+'Beitrag PM2'!B57 -> 5.01 | C72: =+'Beitrag PM2'!C57 -> -
A73: 70 | B73: =+'Beitrag PM2'!B58 -> 5.31 | C73: =+'Beitrag PM2'!C58 -> -

Sheet Beitrag PM2 (hidden)
A1: Beiträge Tarif OLGAflex Gruppenversicherung
A4: für 1 € | B4: OLGAflex.AR | C4: OLGAflex.Ri
A5: Stand | B5: 05.23 | C5: 05.23
A6: Alter | B6: € | C6: €
A7: 0-16 | B7: 0.39 | C7: -
A8: 17-20 | B8: 0.23 | C8: -
A9: 21 | B9: 0.66 | C9: 0.07
A10: 22 | B10: 0.68 | C10: 0.07
A11: 23 | B11: 0.71 | C11: 0.07
A12: 24 | B12: 0.73 | C12: 0.07
A13: 25 | B13: 0.76 | C13: 0.07
A14: 26 | B14: 0.79 | C14: 0.07
A15: 27 | B15: 0.82 | C15: 0.07
A16: 28 | B16: 0.85 | C16: 0.07
A17: 29 | B17: 0.88 | C17: 0.07
A18: 30 | B18: 0.92 | C18: 0.07
A19: 31 | B19: 0.95 | C19: 0.07
A20: 32 | B20: 0.99 | C20: 0.07
A21: 33 | B21: 1.03 | C21: 0.07
A22: 34 | B22: 1.07 | C22: 0.07
A23: 35 | B23: 1.11 | C23: 0.07
A24: 36 | B24: 1.16 | C24: 0.07
A25: 37 | B25: 1.2 | C25: 0.07
A26: 38 | B26: 1.25 | C26: 0.07
A27: 39 | B27: 1.3 | C27: 0.07
A28: 40 | B28: 1.35 | C28: 0.07
A29: 41 | B29: 1.4 | C29: 0.07
A30: 42 | B30: 1.46 | C30: 0.07
A31: 43 | B31: 1.52 | C31: 0.07
A32: 44 | B32: 1.58 | C32: 0.07
A33: 45 | B33: 1.64 | C33: 0.07
A34: 46 | B34: 1.71 | C34: 0.07
A35: 47 | B35: 1.78 | C35: 0.07
A36: 48 | B36: 1.85 | C36: 0.07
A37: 49 | B37: 1.93 | C37: 0.07
A38: 50 | B38: 2.01 | C38: 0.07
A39: 51 | B39: 2.1 | C39: 0.21
A40: 52 | B40: 2.19 | C40: 0.21
A41: 53 | B41: 2.28 | C41: 0.21
A42: 54 | B42: 2.39 | C42: 0.21
A43: 55 | B43: 2.49 | C43: 0.21
A44: 56 | B44: 2.61 | C44: 0.21
A45: 57 | B45: 2.73 | C45: 0.21
A46: 58 | B46: 2.85 | C46: 0.21
A47: 59 | B47: 2.99 | C47: 0.21
A48: 60 | B48: 3.14 | C48: 0.21
A49: 61 | B49: 3.29 | C49: -
A50: 62 | B50: 3.46 | C50: -
A51: 63 | B51: 3.64 | C51: -
A52: 64 | B52: 3.83 | C52: -
A53: 65 | B53: 4.04 | C53: -
A54: 66 | B54: 4.26 | C54: -
A55: 67 | B55: 4.49 | C55: -
A56: 68 | B56: 4.74 | C56: -
A57: 69 | B57: 5.01 | C57: -
A58: 70 | B58: 5.31 | C58: -
A59: 71 | B59: 5.63
A60: 72 | B60: 5.98
A61: 73 | B61: 6.35
A62: 74 | B62: 6.77
A63: 75 | B63: 7.22
A64: 76 | B64: 7.71
A65: 77 | B65: 8.25
A66: 78 | B66: 8.84
A67: 79 | B67: 9.48
A68: 80 | B68: 10.17
A69: 81 | B69: 10.93
A70: 82 | B70: 11.75
A71: 83 | B71: 12.63
A72: 84 | B72: 13.59
A73: 85 | B73: 14.61
A74: 86 | B74: 15.7
A75: 87 | B75: 16.87
A76: 88 | B76: 18.11
A77: 89 | B77: 19.42
A78: 90 | B78: 20.81
A79: 91 | B79: 22.28
A80: 92 | B80: 23.81
A81: 93 | B81: 25.42
A82: 94 | B82: 27.09
A83: 95 | B83: 28.82
A84: 96 | B84: 30.6
A85: 97 | B85: 32.42
A86: 98 | B86: 34.27
A87: 99 | B87: 36.13

Sheet Leistungen (hidden)
A4: Pflegetageld OLGAflex | B4: =IF(Beitrag!H4>150,"",Beitrag!H4) -> 150
B6: Ambulant | C6: Stationär
A7: Pflegegrad 1 | B7: 10 %* | C7: 10 %*
A8: Pflegegrad 2 | B8: 30 %* | C8: 100 %*
A9: Pflegegrad 3 | B9: 70 %* | C9: 100 %*
A10: Pflegegrad 4 | B10: 100 %* | C10: 100 %*
A11: Pflegegrad 5 | B11: 100 %* | C11: 100 %*
B13: Ambulant | C13: Stationär
A14: Pflegegrad 1 | B14: 0.1 | C14: 0.1
A15: Pflegegrad 2 | B15: 0.3 | C15: 1
A16: Pflegegrad 3 | B16: 0.7 | C16: 1
A17: Pflegegrad 4 | B17: 1 | C17: 1
A18: Pflegegrad 5 | B18: 1 | C18: 1
B20: Ambulant | C20: Stationär
A21: Pflegegrad 1 | B21: =B14*$B$4*30 -> 450 | C21: =C14*$B$4*30 -> 450
A22: Pflegegrad 2 | B22: =B15*$B$4*30 -> 1350 | C22: 4500
A23: Pflegegrad 3 | B23: 3150 | C23: 4500
A24: Pflegegrad 4 | B24: 4500 | C24: 4500
A25: Pflegegrad 5 | B25: 4500 | C25: 4500
